fUSD/lending_fUSD_20240424
["ID","MTS","AMOUNT","RATE_DAILY","PERIOD"]
[323399899,1713970294661,-1916.7,0.00012876,2]
[323399900,1713970294671,-500.0,0.00012876,2]
[323399901,1713970294681,-3078.47,0.00012876,2]
[323399902,1713970294691,-562.8,0.00012876,2]
[323399903,1713970294701,-899.94,0.00012876,2]
[323399904,1713970294711,-730.52,0.00012876,2]
[323399905,1713970294720,-2615.62,0.00012876,2]
[323399906,1713970294730,-1361.48,0.00012876,2]
[323399907,1713970294740,-2640.73,0.00012876,2]
[323399908,1713970294750,-500.0,0.00012876,2]
[323399909,1713970294760,-500.0,0.00012876,2]
[323399910,1713970294769,-697.36,0.00012876,2]
[323399911,1713970294779,-500.0,0.00012876,2]
[323399912,1713970294788,-990.86,0.00012876,2]
[323399913,1713970294798,-2764.19,0.00012876,2]
[323399914,1713970294808,-783.72,0.00012876,2]
[323399915,1713970295035,-3152.44,0.00012876,2]
[323399916,1713970295045,-7011.83,0.00012876,2]
[323399917,1713970295055,-2022.73,0.00012876,2]
[323399918,1713970295065,-737.94,0.00012876,2]
[323399919,1713970295075,-500.0,0.00012876,2]
[323399920,1713970295085,-1113.65,0.00012876,2]
[323399921,1713970295095,-1823.7,0.00012876,2]
[323399922,1713970295107,-1402.62,0.00012876,2]
[323399923,1713970295117,-1197.08,0.00012876,2]
[323399924,1713970295127,-500.0,0.00012876,2]
[323399925,1713970295137,-500.0,0.00012876,2]
[323399926,1713970295147,-4348.51,0.00012876,2]
[323399927,1713970295158,-2636.17,0.00012876,2]
[323399928,1713970295168,-3223.85,0.00012876,2]
[323399929,1713970295179,-500.0,0.00012876,2]
[323399930,1713970295189,-4228.42,0.00012876,2]
[323399931,1713970295200,-1504.36,0.00012876,2]
[323399932,1713970295210,-500.0,0.00012876,2]
[323399933,1713970295220,-5620.65,0.00012876,2]
[323399934,1713970295230,-500.0,0.00012876,2]
[323399935,1713970295240,-5800.0,0.00012876,2]
[323399936,1713970295250,-500.0,0.00012876,2]
[323399937,1713970295260,-1363.17,0.00012876,2]
[323399938,1713970295270,-5224.62,0.00012876,2]
[323399939,1713970295279,-625.96,0.00012876,2]
[323399940,1713970295289,-4374.11,0.00012876,2]
[323399941,1713970295299,-2835.94,0.00012876,2]
[323399942,1713970295308,-5763.87,0.00012876,2]
[323399943,1713970295319,-1465.53,0.00012876,2]
[323399944,1713970295328,-6108.9,0.00012876,2]
[323399945,1713970295338,-6784.59,0.00012876,2]
[323399946,1713970295347,-500.0,0.00012876,2]
[323399947,1713970295359,-1491.28,0.00012876,2]
[323399948,1713970295369,-207.73230545,0.00012876,2]
[323399949,1713970295378,-12609.06,0.00012876,2]
[323399950,1713970295388,-500.0,0.00012876,2]
[323399951,1713970295398,-614.86,0.00012876,2]
[323399952,1713970295408,-2609.42,0.00012876,2]
[323399953,1713970295418,-2707.94,0.00012876,2]
[323399954,1713970295427,-500.0,0.00012876,2]
[323399955,1713970295437,-4823.53,0.00012876,2]
[323399956,1713970295447,-11410.81,0.00012876,2]
[323399957,1713970295457,-7407.43,0.00012876,2]
[323399958,1713970295467,-4185.39,0.00012876,2]
[323399959,1713970295476,-500.0,0.00012876,2]
[323399960,1713970295486,-1025.03,0.00012876,2]
[323399961,1713970295495,-1176.77,0.00012876,2]
[323399962,1713970295504,-5110.77,0.00012876,2]
[323399963,1713970295513,-531.57,0.00012876,2]
[323399964,1713970295522,-500.0,0.00012876,2]
[323399965,1713970295532,-2949.43,0.00012876,2]
[323399966,1713970295541,-4511.82,0.00012876,2]
[323399967,1713970295551,-578.08662695,0.00012876,2]
[323399968,1713970295560,-500.0,0.00012876,2]
[323399969,1713970295570,-4121.9,0.00012876,2]
[323399970,1713970295579,-500.0,0.00012876,2]
[323399971,1713970295589,-14978.16,0.00012876,2]
[323399972,1713970295599,-6957.98,0.00012876,2]
[323399973,1713970295612,-500.0,0.00012876,2]
[323399974,1713970295623,-500.0,0.00012876,2]
[323399975,1713970295633,-500.0,0.00012876,2]
[323399976,1713970295643,-500.0,0.00012876,2]
[323399977,1713970295653,-9490.19,0.00012876,2]
[323399978,1713970295663,-7528.94,0.00012876,2]
[323399979,1713970295672,-4359.94,0.00012876,2]
[323399980,1713970295682,-500.0,0.00012876,2]
[323399981,1713970295692,-504.66399935,0.00012876,2]
[323399982,1713970295702,-500.0,0.00012876,2]
[323399983,1713970295711,-2968.93,0.00012876,2]
[323399984,1713970295722,-564.42,0.00012876,2]
[323399985,1713970295732,-4584.73,0.00012876,2]
[323399986,1713970295742,-528.56891315,0.00012876,2]
[323399987,1713970295752,-11022.37,0.00012876,2]
[323399988,1713970295762,-500.0,0.00012876,2]
[323399989,1713970295772,-500.0,0.00012876,2]
[323399990,1713970295781,-522.71586848,0.00012876,2]
[323399991,1713970295790,-4779.27,0.00012876,2]
[323399992,1713970295800,-1135.13,0.00012876,2]
[323399993,1713970295809,-500.0,0.00012876,2]
[323399994,1713970295819,-3711.59,0.00012876,2]
[323399995,1713970295828,-500.0,0.00012876,2]
[323399996,1713970295838,-1109.42,0.00012876,2]
[323399997,1713970295848,-500.0,0.00012876,2]
[323399998,1713970295863,-500.0,0.00012876,2]
[323399999,1713970295873,-675.38,0.00012876,2]
[323400000,1713970295883,-500.0,0.00012876,2]
[323400001,1713970295893,-500.0,0.00012876,2]
[323400002,1713970295903,-3747.04,0.00012876,2]
[323400003,1713970295913,-500.0,0.00012876,2]
[323400004,1713970295922,-500.0,0.00012876,2]
[323400005,1713970295931,-500.0,0.00012876,2]
[323400006,1713970295941,-500.0,0.00012876,2]
[323400007,1713970295951,-8818.15,0.00012876,2]
[323400008,1713970295961,-500.0,0.00012876,2]
[323400009,1713970295971,-500.0,0.00012876,2]
[323400010,1713970295982,-544.3831126,0.00012876,2]
[323400011,1713970295992,-645.8,0.00012876,2]
[323400012,1713970296003,-500.0,0.00012876,2]
[323400013,1713970296014,-500.0,0.00012876,2]
[323400014,1713970296023,-500.0,0.00012876,2]
[323400015,1713970296033,-1700.75,0.00012876,2]
[323400016,1713970296043,-500.0,0.00012876,2]
[323400017,1713970296052,-3119.0,0.00012877,2]
[323400018,1713970296062,-6240.0,0.00012877,2]
[323400019,1713970296072,-5168.0,0.00012877,2]
[323400020,1713970296082,-5800.0,0.00012877,2]
[323400021,1713970296092,-160.0,0.00012877,2]
[323400022,1713970296102,-996.13310653,0.00012877,2]
[323400023,1713970296115,-500.0,0.00012878,2]
[323400024,1713970296124,-160.0,0.00012878,2]
[323400025,1713970296133,-3983.39166356,0.00012878,2]
[323400026,1713970296144,-6230.29094646,0.00012881,2]
[323400027,1713970296154,-150.0,0.00012882,2]
[323400028,1713970296165,-150.0,0.0001289,2]
[323400029,1713970296177,-6230.29094646,0.00012891,2]
[323400030,1713970296189,-150.0,0.00012897,2]
[323400031,1713970296200,-150.0,0.00012899,2]
[323400032,1713970296211,-365.97088217,0.000129,2]
[323400033,1713970296222,-12635.23331871,0.000129,2]
[323400034,1713970296232,-12635.23331867,0.000129,2]
[323400035,1713970296243,-12635.23331867,0.000129,2]
[323400036,1713970296253,-12635.23331867,0.000129,2]
[323400037,1713970296264,-12635.23331867,0.000129,2]
[323400038,1713970296275,-12635.23331867,0.000129,2]
[323400039,1713970296285,-12635.23331867,0.000129,2]
[323400040,1713970296294,-12635.23331867,0.000129,2]
[323400041,1713970296305,-158.4,0.000129,2]
[323400042,1713970296315,-150.0,0.00012914,2]
[323400043,1713970296325,-150.0,0.00012919,2]
[323400044,1713970296335,-150.0,0.0001292,2]
[323400045,1713970296345,-150.0,0.0001292,2]
[323400046,1713970296357,-150.0,0.00012927,2]
[323400047,1713970296368,-150.0,0.00012939,2]
[323400048,1713970296378,-150.0,0.00012948,2]
[323400049,1713970296389,-150.0,0.00012952,2]
[323400050,1713970296399,-150.0,0.00012961,2]
[323400051,1713970296408,-16137.08669661,0.00012989,3]
[323400052,1713970296419,-1182.56590969,0.0001299,2]
[323400053,1713970296430,-1301.54626849,0.0001299,2]
[323400054,1713970296440,-184656.03235031,0.0001299,2]
[323400055,1713970296450,-7104.9703908,0.00012991,2]
[323400056,1713970296461,-6623.4592277,0.00012991,2]
[323400057,1713970296471,-6141.9480646,0.00012991,2]
[323400058,1713970296482,-61844.6561681,0.00012991,2]
[323400059,1713970296492,-57721.3822383,0.00012991,2]
[323400060,1713970296502,-53598.1083084,0.00012991,2]
[323400061,1713970296512,-1799.7157976,0.00012991,2]
[323400062,1713970296523,-1673.3498958,0.00012991,2]
[323400063,1713970296533,-1546.9839939,0.00012991,2]
[323400064,1713970296544,-809104.19116944,0.00012992,2]
[323400065,1713970296554,-15846.3013633,0.00012999,7]
[323400066,1713970296563,-12197.66510163,0.00012999,2]
[323400067,1713970296573,-1483721.78598502,0.00013,2]
[323400068,1713970296583,-117330.0926752,0.00013,2]
[323400069,1713970296592,-104781.08836493,0.00013,2]
[323400070,1713970296602,-108461.99087135,0.00013,2]
[323400071,1713970296616,-1000.0,0.00013,2]
[323400072,1713970296625,-1373194.80952251,0.00013,2]
[323400073,1713970296636,-2506748.75377943,0.00013,2]
[323400074,1713970296646,-6459058.81974918,0.00013,2]
[323400075,1713970296655,-1669682.56899303,0.00013,2]
[323400076,1713970296665,-640208.90908232,0.00013,2]
[323400077,1713970297914,-500.0,0.00010958,2]
[323400078,1713970297924,-151.31,0.00010958,2]
[323400079,1713970297965,-348.69,0.00010958,2]
[323400080,1713970297976,-304.10845449,0.00011231,2]
[323400081,1713970297992,-195.89154551,0.00011231,2]
[323400082,1713970298001,-500.0,0.00011232,2]
[323400083,1713970298011,-211.47,0.00011232,2]
[323400084,1713970298021,-178.43,0.00011505,2]
[323400085,1713970298031,-467.30825449,0.00011506,2]
[323400086,1713970298056,-164.49174551,0.00011506,2]
[323400087,1713970298067,-5713.92386029,0.00013,2]
[323400088,1713970298079,-325050.0000001,0.00013,2]
[323400089,1713970298095,-1984.22813612,0.00013,2]
[323400090,1713970298111,-622.67970675,0.00013,2]
[323400091,1713970298138,-15782.1,0.00013,2]
[323400092,1713970298150,-43870.25701281,0.00013,2]
[323400093,1713970298184,-7446.6,0.00013,2]
[323400094,1713970298210,-1531.1,0.00013,2]
[323400095,1713970298328,-650.65,0.00013,2]
[323400096,1713970298829,-500.0,0.00010958,2]
[323400097,1713970298838,-159.17363319,0.00010958,2]
[323400098,1713970299373,-340.82636681,0.00010958,2]
[323400099,1713970299382,-500.0,0.00011231,2]
[323400100,1713970299393,-500.0,0.00011231,2]
[323400101,1713970299402,-417.94663319,0.00011232,2]
[323400102,1713970299426,-82.05336681,0.00011232,2]
[323400103,1713970299436,-500.0,0.00011232,2]
[323400104,1713970299446,-67.36663319,0.00011505,2]
[323400105,1713970299458,-412.57336681,0.00011505,2]
[323400106,1713970299467,-475.0321971,0.00011506,2]
[323400107,1713970299481,-24.9678029,0.00011506,2]
[323400108,1713970299491,-609.03,0.00011506,2]
[323400109,1713970299501,-500.0,0.0001178,2]
[323400110,1713970299511,-500.0,0.00012054,2]
[323400111,1713970299521,-500.0,0.00012328,2]
[323400112,1713970299532,-500.0,0.00012602,2]
[323400113,1713970299541,-500.0,0.00012876,2]
[323400114,1713970299551,-944.47863917,0.00013,2]
[323400115,1713970299563,-3215.99999999,0.00013,2]
[323400116,1713970299584,-13052.0,0.00013,2]
[323400117,1713970301863,-0.14567525,0.00013,2]
[323400118,1713970301875,-2260.56811663,0.00013,2]
[323400119,1713970301886,-13081.33320115,0.00013,2]
[323400120,1713970301898,-281.01007735,0.00013,2]
[323400121,1713970301909,-299.36841319,0.00013,2]
[323400122,1713970301924,-340.60509541,0.00013,2]
[323400123,1713970301945,-814.6116811,0.00013,2]
[323400140,1713970526231,443.5,8.493e-05,2]
[323400147,1713971012475,-155.0,0.00010098,2]
[323400148,1713971012497,-2360.31228709,0.00010099,2]
[323400149,1713971012517,-236.77741169,0.00010099,2]
[323400150,1713971012539,-1145.74317935,0.000101,2]
[323400151,1713971012560,-1500.0,0.00010104,2]
[323400152,1713971012580,-150.0,0.00010231,2]
[323400153,1713971012601,-10452.16712187,0.00010232,2]
[323400155,1713971127541,178.77,9.907e-05,2]
[323400160,1713971274014,2040.22,9.833e-05,2]
[323400161,1713971276186,19567.16,9.833e-05,2]
[323400163,1713971314016,594.26,9.906e-05,2]
[323400165,1713971392150,165.46331883,9.923e-05,2]
[323400176,1713971431967,-155.0,0.0001002,2]
[323400177,1713971431976,-532.96493615,0.00010021,2]
[323400178,1713971431986,-250.0,0.00010023,2]
[323400179,1713971431997,-1100.8,0.00010132,2]
[323400180,1713971432007,-3681.70808824,0.00010165,2]
[323400181,1713971432016,-469.99,0.00010166,2]
[323400182,1713971432025,-150.0,0.00010231,2]
[323400183,1713971432034,-1405.50479185,0.00010231,2]
[323400184,1713971432061,-670.78694448,0.00010231,2]
[323400185,1713971432073,-330.79,0.00010231,2]
[323400191,1713971432123,-824.40410855,0.00010231,2]
[323400192,1713971432132,-334.94556532,0.00010232,4]
[323400194,1713971432141,-408.57511403,0.00010232,2]
[323400195,1713971432151,-1000.0,0.00010289,2]
[323400196,1713971432160,-166.15,0.00010472,2]
[323400197,1713971432169,-781.43629319,0.00010564,2]
[323400198,1713971432179,-167.42,0.00010659,2]
[323400199,1713971432188,-750.0,0.00010669,2]
[323400200,1713971432197,-400.76881891,0.00010757,2]
[323400202,1713971432209,-42.73118109,0.00010757,2]
[323400203,1713971432219,-167.2527065,0.00010858,2]
[323400205,1713971432230,-195.19629405,0.00010858,2]
[323400206,1713971432275,-408.63640166,0.00010858,2]
[323400207,1713971432289,-315.0,0.00010858,2]
[323400208,1713971432303,-1187.06600429,0.00010858,2]
[323400209,1713971432317,-530.63354125,0.00010858,2]
[323400210,1713971432330,-1136.016652,0.00010858,2]
[323400211,1713971432343,-1608.99999999,0.00010858,2]
[323400212,1713971432355,-400.10910676,0.00010858,2]
[323400213,1713971432366,-1000.0,0.00010858,2]
[323400214,1713971432376,-167.25270647,0.00010926,2]
[323400215,1713971432387,-376.69607631,0.00010956,2]
[323400216,1713971432397,-175.09192514,0.00010956,2]
[323400217,1713971432406,-184.3621,0.00010956,2]
[323400218,1713971432415,-155.0,0.00010956,2]
[323400219,1713971432425,-1233.87226369,0.00010956,2]
[323400220,1713971432437,-239.9067104,0.00010957,2]
[323400221,1713971432447,-500.0,0.00010957,2]
[323400222,1713971432457,-500.0,0.00010957,2]
[323400223,1713971432467,-500.0,0.00010957,2]
[323400224,1713971432477,-500.0,0.00010957,2]
[323400225,1713971432487,-598.75344638,0.00010958,2]
[323400226,1713971432501,-10.26655362,0.00010958,2]
[323400227,1713971432511,-500.0,0.00010958,2]
[323400228,1713971432522,-500.0,0.00010958,2]
[323400229,1713971432533,-632.41,0.00010958,2]
[323400230,1713971432544,-938.45,0.00010958,2]
[323400231,1713971432555,-500.0,0.00010958,2]
[323400232,1713971432565,-500.0,0.00010958,2]
[323400233,1713971432574,-188.33366846,0.00010958,2]
[323400234,1713971432587,-311.66633154,0.00010958,2]
[323400235,1713971432596,-500.0,0.00010958,2]
[323400236,1713971432606,-500.0,0.00010958,2]
[323400237,1713971432615,-500.0,0.00010958,2]
[323400238,1713971432625,-500.0,0.00010958,2]
[323400239,1713971432635,-500.0,0.00010958,2]
[323400240,1713971432646,-500.0,0.00010958,2]
[323400241,1713971432655,-1522.84,0.00010958,2]
[323400242,1713971432665,-500.0,0.00010958,2]
[323400243,1713971432676,-500.0,0.00010958,2]
[323400244,1713971432687,-500.0,0.00010958,2]
[323400245,1713971432697,-500.0,0.00010958,2]
[323400246,1713971432706,-500.0,0.00010958,2]
[323400247,1713971432716,-500.0,0.00010958,2]
[323400248,1713971432732,-500.0,0.00010958,2]
[323400249,1713971432742,-500.0,0.00010958,2]
[323400250,1713971432754,-500.0,0.00010958,2]
[323400251,1713971432764,-500.0,0.00010958,2]
[323400252,1713971432776,-500.0,0.00010958,2]
[323400253,1713971432786,-500.0,0.00010958,2]
[323400254,1713971432798,-500.0,0.00010958,2]
[323400255,1713971432809,-2985.36,0.00010958,2]
[323400256,1713971432819,-500.0,0.00010958,2]
[323400257,1713971432829,-500.0,0.00010958,2]
[323400258,1713971432841,-500.0,0.00010958,2]
[323400259,1713971432854,-500.0,0.00010958,2]
[323400260,1713971432864,-500.0,0.00010958,2]
[323400261,1713971432874,-500.0,0.00010958,2]
[323400262,1713971432886,-500.0,0.00010958,2]
[323400263,1713971432898,-500.0,0.00010958,2]
[323400264,1713971432910,-500.0,0.00010958,2]
[323400265,1713971432921,-500.0,0.00010958,2]
[323400266,1713971432932,-500.0,0.00010958,2]
[323400267,1713971432942,-500.0,0.00010958,2]
[323400268,1713971432953,-500.0,0.00010958,2]
[323400269,1713971432964,-500.0,0.00010958,2]
[323400270,1713971432975,-500.0,0.00010958,2]
[323400271,1713971432985,-500.0,0.00010958,2]
[323400272,1713971432997,-500.0,0.00010958,2]
[323400273,1713971433008,-500.0,0.00010958,2]
[323400274,1713971433020,-703.95,0.00010958,2]
[323400275,1713971433030,-500.0,0.00010958,2]
[323400276,1713971433040,-500.0,0.00010958,2]
[323400277,1713971433051,-500.0,0.00010958,2]
[323400278,1713971433061,-500.0,0.00010958,2]
[323400279,1713971433070,-500.0,0.00010958,2]
[323400280,1713971433082,-500.0,0.00010958,2]
[323400281,1713971433093,-500.0,0.00010958,2]
[323400282,1713971433103,-395.16,0.00010958,2]
[323400283,1713971433114,-500.0,0.00010958,2]
[323400284,1713971433126,-1000.0,0.00010958,2]
[323400285,1713971433136,-500.0,0.00010958,2]
[323400286,1713971433146,-241.17096355,0.00010958,2]
[323400287,1713971433156,-500.0,0.00010958,2]
[323400288,1713971433167,-750.77,0.00010958,2]
[323400289,1713971433176,-500.0,0.00010958,2]
[323400290,1713971433186,-500.0,0.00010958,2]
[323400291,1713971433198,-500.0,0.00010958,2]
[323400292,1713971433209,-500.0,0.00010958,2]
[323400293,1713971433219,-500.0,0.00010958,2]
[323400294,1713971433231,-500.0,0.00010958,2]
[323400295,1713971433245,-362.14587078,0.00010958,2]
[323400296,1713971433273,-137.85412922,0.00010958,2]
[323400297,1713971433282,-500.0,0.00010958,2]
[323400298,1713971433292,-491.39122372,0.00010958,2]
[323400299,1713971433304,-80.44877628,0.00010958,2]
[323400300,1713971433315,-415.84798341,0.00010958,2]
[323400301,1713971433335,-84.15201659,0.00010958,2]
[323400302,1713971433345,-239.94798602,0.00010958,2]
[323400305,1713971438047,-260.05201398,0.00010958,2]
[323400306,1713971438057,-500.0,0.00010958,2]
[323400307,1713971438067,-500.0,0.00010958,2]
[323400308,1713971438077,-801.18,0.00010958,2]
[323400309,1713971438087,-500.0,0.00010958,2]
[323400310,1713971438096,-500.0,0.00010958,2]
[323400311,1713971438106,-78.87064466,0.00010958,2]
[323400312,1713971438118,-322.86757578,0.00010958,2]
[323400313,1713971438128,-500.0,0.00010958,2]
[323400314,1713971438138,-500.0,0.00010958,2]
[323400315,1713971438147,-500.0,0.00010958,2]
[323400316,1713971438156,-389.28296504,0.00010958,2]
[323400318,1713971438168,-110.71703496,0.00010958,2]
[323400319,1713971438178,-500.0,0.00010958,2]
[323400320,1713971438187,-500.0,0.00010958,2]
[323400321,1713971438197,-500.0,0.00010958,2]
[323400322,1713971438207,-500.0,0.00010958,2]
[323400323,1713971438215,-500.0,0.00010958,2]
[323400324,1713971438225,-500.0,0.00010958,2]
[323400325,1713971438236,-500.0,0.00010958,2]
[323400326,1713971438247,-500.0,0.00010958,2]
[323400328,1713971438258,-500.0,0.00010958,2]
[323400330,1713971438268,-571.87,0.00010958,2]
[323400332,1713971438278,-757.62,0.00010958,2]
[323400333,1713971438289,-491.59296514,0.00010958,2]
[323400334,1713971438303,-8.40703486,0.00010958,2]
[323400335,1713971438314,-1868.55,0.00010958,2]
[323400336,1713971438325,-500.0,0.00010958,2]
[323400337,1713971438336,-500.0,0.00010958,2]
[323400338,1713971438346,-500.0,0.00010958,2]
[323400339,1713971438357,-500.0,0.00010958,2]
[323400340,1713971438368,-3047.41,0.00010958,2]
[323400341,1713971438378,-500.0,0.00010958,2]
[323400342,1713971438388,-960.72,0.00010958,2]
[323400344,1713971438398,-500.0,0.00010958,2]
[323400345,1713971438408,-500.0,0.00010958,2]
[323400346,1713971438417,-500.0,0.00010958,2]
[323400347,1713971438427,-738.26,0.00010958,2]
[323400348,1713971438437,-500.0,0.00010958,2]
[323400349,1713971438446,-500.0,0.00010958,2]
[323400350,1713971438455,-500.0,0.00010958,2]
[323400351,1713971438465,-632.55,0.00010958,2]
[323400352,1713971438475,-500.0,0.00010958,2]
[323400353,1713971438484,-500.0,0.00010958,2]
[323400354,1713971438494,-500.0,0.00010958,2]
[323400355,1713971438509,-500.0,0.00010958,2]
[323400356,1713971438518,-500.0,0.00010958,2]
[323400357,1713971438527,-500.0,0.00010958,2]
[323400358,1713971438536,-500.0,0.00010958,2]
[323400359,1713971438546,-500.0,0.00010958,2]
[323400360,1713971438554,-500.0,0.00010958,2]
[323400361,1713971438564,-500.0,0.00010958,2]
[323400362,1713971438573,-346.30127552,0.00010958,2]
[323400363,1713971438582,-500.0,0.00010958,2]
[323400364,1713971438592,-500.0,0.00010958,2]
[323400365,1713971438601,-500.0,0.00010958,2]
[323400366,1713971438611,-500.0,0.00010958,2]
[323400367,1713971438621,-500.0,0.00010958,2]
[323400368,1713971438630,-1231.81,0.00010958,2]
[323400369,1713971438640,-500.0,0.00010958,2]
[323400370,1713971438649,-500.0,0.00010958,2]
[323400371,1713971438658,-500.0,0.00010958,2]
[323400372,1713971438667,-500.0,0.00010958,2]
[323400373,1713971438677,-4414.65,0.00010958,2]
[323400374,1713971438686,-500.0,0.00010958,2]
[323400375,1713971438695,-500.0,0.00010958,2]
[323400376,1713971438705,-500.0,0.00010958,2]
[323400377,1713971438714,-500.0,0.00010958,2]
[323400378,1713971438723,-500.0,0.00010958,2]
[323400379,1713971438733,-500.0,0.00010958,2]
[323400380,1713971438743,-500.0,0.00010958,2]
[323400381,1713971438753,-1512.32,0.00010958,2]
[323400382,1713971438762,-500.0,0.00010958,2]
[323400383,1713971438772,-500.0,0.00010958,2]
[323400384,1713971438781,-500.0,0.00010958,2]
[323400385,1713971438790,-500.0,0.00010958,2]
[323400386,1713971438800,-500.0,0.00010958,2]
[323400387,1713971438809,-500.0,0.00010958,2]
[323400388,1713971438818,-500.0,0.00010958,2]
[323400389,1713971438827,-567.19349719,0.00010958,2]
[323400390,1713971438836,-500.0,0.00010958,2]
[323400391,1713971438846,-500.0,0.00010958,2]
[323400392,1713971438856,-500.0,0.00010958,2]
[323400393,1713971438865,-286.22819243,0.00010958,2]
[323400394,1713971438880,-213.77180757,0.00010958,2]
[323400395,1713971438889,-500.0,0.00010958,2]
[323400396,1713971438899,-393.98219244,0.00010958,2]
[323400397,1713971438928,-106.01780756,0.00010958,2]
[323400398,1713971438937,-500.0,0.00010958,2]
[323400399,1713971438946,-1160.08,0.00010958,2]
[323400400,1713971438956,-500.0,0.00010958,2]
[323400401,1713971438965,-500.0,0.00010958,2]
[323400402,1713971438974,-500.0,0.00010958,2]
[323400403,1713971438984,-500.0,0.00010958,2]
[323400404,1713971438993,-500.0,0.00010958,2]
[323400405,1713971439004,-1014.83,0.00010958,2]
[323400406,1713971439014,-500.0,0.00010958,2]
[323400407,1713971439023,-500.0,0.00010958,2]
[323400408,1713971439032,-500.0,0.00010958,2]
[323400409,1713971439041,-500.0,0.00010958,2]
[323400410,1713971439051,-500.0,0.00010958,2]
[323400411,1713971439060,-500.000001,0.00010958,2]
[323400412,1713971439070,-607.9058632,0.00010958,2]
[323400413,1713971439080,-500.0,0.00010958,2]
[323400414,1713971439090,-277.8403815,0.00010958,2]
[323400421,1713971440039,-222.1596185,0.00010958,2]
[323400422,1713971440049,-400.19651157,0.00010958,2]
[323400423,1713971440060,-99.80348843,0.00010958,2]
[323400424,1713971440070,-500.0,0.00010958,2]
[323400425,1713971440079,-58.04291659,0.00010958,2]
[323400426,1713971440196,-441.95708341,0.00010958,2]
[323400427,1713971440205,-239.37554291,0.00010958,2]
[323400428,1713971440232,-260.62445709,0.00010958,2]
[323400429,1713971440242,-65.32030291,0.00010958,2]
[323400430,1713971440288,-434.67969709,0.00010958,2]
[323400431,1713971440297,-500.0,0.00010958,2]
[323400432,1713971440307,-500.0,0.00010958,2]
[323400433,1713971440321,-150.0,0.00010958,2]
[323400434,1713971440331,-554.94,0.00010958,2]
[323400435,1713971440341,-500.0,0.00010958,2]
[323400436,1713971440352,-981.42,0.00010958,2]
[323400437,1713971440362,-1266.64,0.00010958,2]
[323400438,1713971440372,-500.0,0.00010958,2]
[323400439,1713971440381,-500.0,0.00010958,2]
[323400440,1713971440391,-500.0,0.00010958,2]
[323400441,1713971440401,-500.0,0.00010958,2]
[323400442,1713971440413,-500.0,0.00010958,2]
[323400443,1713971440423,-2618.92,0.00010958,2]
[323400444,1713971440433,-500.0,0.00010958,2]
[323400445,1713971440443,-500.0,0.00010958,2]
[323400446,1713971440453,-500.0,0.00010958,2]
[323400447,1713971440463,-500.0,0.00010958,2]
[323400448,1713971440473,-834.92,0.00010958,2]
[323400449,1713971440483,-500.0,0.00010958,2]
[323400450,1713971440493,-928.86,0.00010958,2]
[323400451,1713971440506,-500.0,0.00010958,2]
[323400452,1713971440515,-500.0,0.00010958,2]
[323400453,1713971440525,-500.0,0.00010958,2]
[323400454,1713971440534,-500.0,0.00010958,2]
[323400455,1713971440544,-2388.92,0.00010958,2]
[323400456,1713971440553,-500.0,0.00010958,2]
[323400457,1713971440563,-500.0,0.00010958,2]
[323400458,1713971440574,-440.42159067,0.00010958,2]